[Event "Early-Titled-Tuesday-Blitz-February-20-2024"]
[Site "Chess.com"]
[Date "2024.02.20"]
[Round "2"]
[White "santosalberto1987"]
[Black "kpio91"]
[Result "0-1"]
[WhiteElo "2595"]
[BlackElo "2895"]
[TimeControl "180+1"]
[EndTime "8:18:21 PST"]
[Termination "kpio91 won by resignation"]

1. e4 {[%clk 0:03:00.9]} 1... d5 {[%clk 0:02:55.7]} 2. exd5 {[%clk 0:03:00.7]}
2... Qxd5 {[%clk 0:02:55.7]} 3. Nf3 {[%clk 0:03:00.7]} 3... Nf6 {[%clk
0:02:47.5]} 4. d4 {[%clk 0:03:00]} 4... g6 {[%clk 0:02:46.5]} 5. Be2 {[%clk
0:02:57.6]} 5... Bg7 {[%clk 0:02:46.1]} 6. O-O {[%clk 0:02:57.9]} 6... O-O
{[%clk 0:02:45.9]} 7. c4 {[%clk 0:02:58.1]} 7... Qd8 {[%clk 0:02:44.8]} 8. Nc3
{[%clk 0:02:56.9]} 8... c6 {[%clk 0:02:44.6]} 9. Ne5 {[%clk 0:02:55.4]} 9...
Nfd7 {[%clk 0:02:41.8]} 10. Bf4 {[%clk 0:02:47.8]} 10... Nxe5 {[%clk 0:02:39.2]}
11. Bxe5 {[%clk 0:02:47.8]} 11... Bh6 {[%clk 0:02:30.6]} 12. d5 {[%clk
0:02:36.8]} 12... cxd5 {[%clk 0:02:27.7]} 13. cxd5 {[%clk 0:02:36.6]} 13... Nd7
{[%clk 0:02:27.6]} 14. Bd4 {[%clk 0:02:36.3]} 14... Nf6 {[%clk 0:02:26.2]} 15.
Bf3 {[%clk 0:02:36.4]} 15... Bf5 {[%clk 0:02:18.2]} 16. Re1 {[%clk 0:02:36.4]}
16... Bg7 {[%clk 0:02:11.6]} 17. Qb3 {[%clk 0:02:32.9]} 17... Qd7 {[%clk
0:02:04.2]} 18. h3 {[%clk 0:02:28.1]} 18... h5 {[%clk 0:02:03]} 19. Qb5 {[%clk
0:02:18.8]} 19... Rfd8 {[%clk 0:01:56.9]} 20. Qxd7 {[%clk 0:02:08.3]} 20... Rxd7
{[%clk 0:01:56.6]} 21. Rad1 {[%clk 0:02:08.7]} 21... h4 {[%clk 0:01:54.2]} 22.
Bc5 {[%clk 0:02:07.3]} 22... Bf8 {[%clk 0:01:45]} 23. Be2 {[%clk 0:01:57]} 23...
a6 {[%clk 0:01:40.5]} 24. Bf3 {[%clk 0:01:56.3]} 24... Rc8 {[%clk 0:01:39]} 25.
Bd4 {[%clk 0:01:53.9]} 25... b5 {[%clk 0:01:38]} 26. a3 {[%clk 0:01:49.9]} 26...
Bg7 {[%clk 0:01:35.3]} 27. Be5 {[%clk 0:01:46.2]} 27... Ne8 {[%clk 0:01:33.3]}
28. Bxg7 {[%clk 0:01:16]} 28... Kxg7 {[%clk 0:01:32.1]} 29. Be4 {[%clk
0:01:16.6]} 29... Nd6 {[%clk 0:01:29.6]} 30. Bxf5 {[%clk 0:01:16.5]} 30... Nxf5
{[%clk 0:01:29.8]} 31. Re4 {[%clk 0:01:14.2]} 31... Rc5 {[%clk 0:01:14.5]} 32.
Rde1 {[%clk 0:01:13.1]} 32... a5 {[%clk 0:01:13.6]} 33. Kh2 {[%clk 0:01:02.9]}
33... Rb7 {[%clk 0:01:13.1]} 34. Rd1 {[%clk 0:00:48.4]} 34... b4 {[%clk
0:01:11.6]} 35. axb4 {[%clk 0:00:49.3]} 35... axb4 {[%clk 0:01:11.5]} 36. Na4
{[%clk 0:00:49.9]} 36... Rc2 {[%clk 0:01:10.1]} 37. Kg1 {[%clk 0:00:49.8]} 37...
b3 {[%clk 0:01:06.3]} 38. Rd3 {[%clk 0:00:43.6]} 38... Nd6 {[%clk 0:00:59.9]}
39. Rxh4 {[%clk 0:00:41.1]} 39... Nc4 {[%clk 0:00:42.9]} 40. Nc5 {[%clk
0:00:37.3]} 40... Rb5 {[%clk 0:00:42]} 41. Nxb3 {[%clk 0:00:18.2]} 41... Nxb2
{[%clk 0:00:42.1]} 42. Rf3 {[%clk 0:00:17.5]} 42... Rxd5 {[%clk 0:00:38.2]} 43.
Rhf4 {[%clk 0:00:16.9]} 43... f5 {[%clk 0:00:35.7]} 44. Re3 {[%clk 0:00:15]}
44... e5 {[%clk 0:00:32]} 45. Rb4 {[%clk 0:00:14.7]} 45... e4 {[%clk 0:00:31]}
46. Re1 {[%clk 0:00:14.3]} 46... Kh6 {[%clk 0:00:26.4]} 47. Rb7 {[%clk
0:00:15.2]} 47... Nd3 {[%clk 0:00:25.9]} 48. Rf1 {[%clk 0:00:15]} 48... Rb2
{[%clk 0:00:26.1]} 49. Na5 {[%clk 0:00:14.6]} 49... Rxb7 {[%clk 0:00:25.9]} 50.
Nxb7 {[%clk 0:00:15.5]} 50... f4 {[%clk 0:00:23.2]} 51. Ra1 {[%clk 0:00:14.8]}
51... e3 {[%clk 0:00:23.4]} 52. fxe3 {[%clk 0:00:15]} 52... fxe3 {[%clk
0:00:23.9]} 53. Kf1 {[%clk 0:00:15.5]} 53... Re5 {[%clk 0:00:18.2]} 54. Ke2
{[%clk 0:00:15.7]} 54... Nf4+ {[%clk 0:00:18.5]} 55. Kf3 {[%clk 0:00:16.4]}
55... e2 {[%clk 0:00:18.7]} 56. Re1 {[%clk 0:00:15.4]} 56... g5 {[%clk
0:00:14.3]} 57. g3 {[%clk 0:00:15.6]} 57... Nxh3 {[%clk 0:00:14.7]} 58. Rxe2
{[%clk 0:00:16]} 58... Ng1+ {[%clk 0:00:14.8]} 0-1

[Event "Early-Titled-Tuesday-Blitz-February-20-2024"]
[Site "Chess.com"]
[Date "2024.02.20"]
[Round "2"]
[White "DuleMudule"]
[Black "ExtremeLearner"]
[Result "0-1"]
[WhiteElo "2844"]
[BlackElo "2588"]
[TimeControl "180+1"]
[EndTime "8:18:22 PST"]
[Termination "ExtremeLearner won on time"]

1. d4 {[%clk 0:03:00.9]} 1... Nf6 {[%clk 0:02:59.4]} 2. Bg5 {[%clk 0:03:00.4]}
2... d5 {[%clk 0:02:54]} 3. e3 {[%clk 0:03:00.2]} 3... c5 {[%clk 0:02:51]} 4.
Bxf6 {[%clk 0:02:58.8]} 4... gxf6 {[%clk 0:02:51.9]} 5. c4 {[%clk 0:02:58.9]}
5... Nc6 {[%clk 0:02:43.8]} 6. cxd5 {[%clk 0:02:57.9]} 6... Qxd5 {[%clk
0:02:37.2]} 7. Nc3 {[%clk 0:02:58.3]} 7... Qd6 {[%clk 0:02:32]} 8. d5 {[%clk
0:02:47.8]} 8... Ne5 {[%clk 0:02:27.3]} 9. f4 {[%clk 0:02:46.5]} 9... Ng6 {[%clk
0:02:22.9]} 10. Bb5+ {[%clk 0:02:43.8]} 10... Bd7 {[%clk 0:02:21.9]} 11. Ne4
{[%clk 0:02:41.6]} 11... Qb6 {[%clk 0:02:13.7]} 12. Bxd7+ {[%clk 0:02:40.8]}
12... Kxd7 {[%clk 0:02:13.5]} 13. Qa4+ {[%clk 0:02:24.6]} 13... Kd8 {[%clk
0:02:10.2]} 14. O-O-O {[%clk 0:02:23.9]} 14... f5 {[%clk 0:01:52.8]} 15. Ng5
{[%clk 0:02:20.2]} 15... Bg7 {[%clk 0:01:52.9]} 16. Nxf7+ {[%clk 0:02:14.7]}
16... Kc7 {[%clk 0:01:52.7]} 17. Rd2 {[%clk 0:02:12.7]} 17... Rhf8 {[%clk
0:01:50.9]} 18. Ng5 {[%clk 0:02:11.4]} 18... Rf6 {[%clk 0:01:32.8]} 19. Ne6+
{[%clk 0:02:06.1]} 19... Rxe6 {[%clk 0:01:33.3]} 20. dxe6 {[%clk 0:02:06.9]}
20... Rd8 {[%clk 0:01:33.2]} 21. Rd7+ {[%clk 0:01:59.7]} 21... Rxd7 {[%clk
0:01:22.6]} 22. Qxd7+ {[%clk 0:01:53.6]} 22... Kb8 {[%clk 0:01:23.2]} 23. Qd2
{[%clk 0:01:50.6]} 23... Nf8 {[%clk 0:01:15.7]} 24. Ne2 {[%clk 0:01:46.7]} 24...
Nxe6 {[%clk 0:01:15.9]} 25. Nc3 {[%clk 0:01:45.9]} 25... c4 {[%clk 0:01:14.6]}
26. Rd1 {[%clk 0:01:45.1]} 26... a6 {[%clk 0:01:10]} 27. Kc2 {[%clk 0:00:53.6]}
27... Ka7 {[%clk 0:01:07.6]} 28. g3 {[%clk 0:00:53]} 28... Nc5 {[%clk
0:00:35.6]} 29. Qe2 {[%clk 0:00:45.3]} 29... Qb4 {[%clk 0:00:24.9]} 30. Rd4
{[%clk 0:00:22.7]} 30... Bxd4 {[%clk 0:00:21.7]} 31. exd4 {[%clk 0:00:23.6]}
31... Nd3 {[%clk 0:00:22.1]} 32. b3 {[%clk 0:00:23.5]} 32... Qa3 {[%clk
0:00:13.3]} 33. Nd1 {[%clk 0:00:13.1]} 33... cxb3+ {[%clk 0:00:10.4]} 34. axb3
{[%clk 0:00:10.2]} 34... Nb4+ {[%clk 0:00:08.3]} 35. Kd2 {[%clk 0:00:07.7]}
35... Qa2+ {[%clk 0:00:06.2]} 36. Ke1 {[%clk 0:00:07.2]} 36... Qxb3 {[%clk
0:00:06.7]} 37. Qxe7 {[%clk 0:00:06.7]} 37... Nd3+ {[%clk 0:00:04.8]} 38. Kd2
{[%clk 0:00:06.5]} 38... Qb4+ {[%clk 0:00:04.2]} 39. Kxd3 {[%clk 0:00:05.3]}
39... Qxe7 {[%clk 0:00:04.5]} 40. Nc3 {[%clk 0:00:05.2]} 40... Qa3 {[%clk
0:00:04.2]} 41. d5 {[%clk 0:00:04.6]} 41... b5 {[%clk 0:00:04.8]} 42. Kd4 {[%clk
0:00:04.6]} 42... Qb4+ {[%clk 0:00:05.5]} 43. Kd3 {[%clk 0:00:04.5]} 43... Qc4+
{[%clk 0:00:06.2]} 44. Kd2 {[%clk 0:00:04.8]} 44... b4 {[%clk 0:00:06.8]} 45.
Nd1 {[%clk 0:00:04.9]} 45... Qxd5+ {[%clk 0:00:07.3]} 46. Kc1 {[%clk 0:00:05.1]}
46... Qc4+ {[%clk 0:00:07.9]} 47. Kb2 {[%clk 0:00:04.5]} 47... a5 {[%clk
0:00:08.5]} 48. Ne3 {[%clk 0:00:04.4]} 48... Qc3+ {[%clk 0:00:09]} 0-1

[Event "Early-Titled-Tuesday-Blitz-February-20-2024"]
[Site "Chess.com"]
[Date "2024.02.20"]
[Round "2"]
[White "Mesa_1"]
[Black "ilqar_74"]
[Result "0-1"]
[WhiteElo "2571"]
[BlackElo "2841"]
[TimeControl "180+1"]
[EndTime "8:18:24 PST"]
[Termination "ilqar_74 won by checkmate"]

1. Nf3 {[%clk 0:03:00.9]} 1... Nf6 {[%clk 0:02:59.3]} 2. c4 {[%clk 0:03:01.2]}
2... e6 {[%clk 0:02:59.3]} 3. Nc3 {[%clk 0:03:00.8]} 3... d5 {[%clk 0:02:57.8]}
4. d4 {[%clk 0:02:59.3]} 4... Bb4 {[%clk 0:02:58.1]} 5. e3 {[%clk 0:02:56.9]}
5... O-O {[%clk 0:02:57.9]} 6. Bd2 {[%clk 0:02:57.5]} 6... a6 {[%clk 0:02:57]}
7. Rc1 {[%clk 0:02:43.9]} 7... dxc4 {[%clk 0:02:56.8]} 8. Bxc4 {[%clk
0:02:43.1]} 8... b5 {[%clk 0:02:57.1]} 9. Bd3 {[%clk 0:02:32.3]} 9... Bb7 {[%clk
0:02:56.8]} 10. O-O {[%clk 0:02:32.9]} 10... Nbd7 {[%clk 0:02:57]} 11. Qe2
{[%clk 0:02:31.2]} 11... c5 {[%clk 0:02:55.1]} 12. a3 {[%clk 0:02:31.8]} 12...
Bxc3 {[%clk 0:02:55.3]} 13. bxc3 {[%clk 0:02:31.4]} 13... c4 {[%clk 0:02:55.6]}
14. Bb1 {[%clk 0:02:29.5]} 14... Ne4 {[%clk 0:02:56.2]} 15. Be1 {[%clk
0:02:25.6]} 15... Qe7 {[%clk 0:02:55.3]} 16. Qb2 {[%clk 0:02:20.3]} 16... Nb6
{[%clk 0:02:54]} 17. Bxe4 {[%clk 0:02:16.3]} 17... Bxe4 {[%clk 0:02:54.9]} 18.
Nd2 {[%clk 0:02:16.8]} 18... Bd3 {[%clk 0:02:54.9]} 19. f3 {[%clk 0:02:17.4]}
19... Bxf1 {[%clk 0:02:55]} 20. Nxf1 {[%clk 0:02:18.3]} 20... e5 {[%clk
0:02:55.7]} 21. e4 {[%clk 0:02:16.6]} 21... Na4 {[%clk 0:02:54.2]} 22. Qa2
{[%clk 0:02:12.7]} 22... exd4 {[%clk 0:02:54.5]} 23. cxd4 {[%clk 0:02:13.6]}
23... Rfd8 {[%clk 0:02:55]} 24. d5 {[%clk 0:02:12.2]} 24... c3 {[%clk 0:02:53]}
25. Ne3 {[%clk 0:02:07.5]} 25... Rac8 {[%clk 0:02:50]} 26. Nf5 {[%clk
0:02:06.6]} 26... Qc5+ {[%clk 0:02:39.9]} 27. Bf2 {[%clk 0:02:05.7]} 27... Qc4
{[%clk 0:02:31.2]} 28. Qc2 {[%clk 0:02:06.4]} 28... Rd7 {[%clk 0:02:27.1]} 29.
Bd4 {[%clk 0:02:00.5]} 29... f6 {[%clk 0:02:23.4]} 30. h4 {[%clk 0:01:54.8]}
30... h6 {[%clk 0:02:13.8]} 31. Qf2 {[%clk 0:01:51.9]} 31... c2 {[%clk
0:01:58.3]} 32. Qg3 {[%clk 0:01:45.3]} 32... Qd3 {[%clk 0:01:55.6]} 33. Kh2
{[%clk 0:01:33.4]} 33... Qxa3 {[%clk 0:01:37]} 34. Be3 {[%clk 0:01:25.6]} 34...
Kh8 {[%clk 0:01:19.3]} 35. Qg6 {[%clk 0:01:14.5]} 35... Qf8 {[%clk 0:01:18.7]}
36. Bd4 {[%clk 0:00:54.9]} 36... Qf7 {[%clk 0:01:00.2]} 37. Qg4 {[%clk
0:00:49.3]} 37... Kh7 {[%clk 0:00:47.5]} 38. Nd6 {[%clk 0:00:40.9]} 38... Rxd6
{[%clk 0:00:41.5]} 39. Qf5+ {[%clk 0:00:37.5]} 39... Qg6 {[%clk 0:00:24.8]} 40.
Qxc8 {[%clk 0:00:38.4]} 40... Qh5 {[%clk 0:00:24.4]} 41. Qxc2 {[%clk 0:00:35.7]}
41... Qxh4+ {[%clk 0:00:23.9]} 42. Kg1 {[%clk 0:00:36.4]} 42... Kh8 {[%clk
0:00:18.7]} 43. Qc8+ {[%clk 0:00:36]} 43... Kh7 {[%clk 0:00:18.8]} 44. Qf5+
{[%clk 0:00:35.7]} 44... Kg8 {[%clk 0:00:16.2]} 45. Rc8+ {[%clk 0:00:31.8]}
45... Kf7 {[%clk 0:00:15.8]} 46. Rc7+ {[%clk 0:00:31.8]} 46... Kg8 {[%clk
0:00:14.7]} 47. Bf2 {[%clk 0:00:16.4]} 47... Qg5 {[%clk 0:00:14.7]} 48. Qc8+
{[%clk 0:00:15]} 48... Kh7 {[%clk 0:00:15.3]} 49. Rd7 {[%clk 0:00:13.4]} 49...
Rxd7 {[%clk 0:00:14.2]} 50. Qxd7 {[%clk 0:00:14.3]} 50... Nc3 {[%clk 0:00:12.4]}
51. Qe6 {[%clk 0:00:13.1]} 51... Ne2+ {[%clk 0:00:12.3]} 52. Kf1 {[%clk
0:00:13.5]} 52... Nf4 {[%clk 0:00:12.9]} 53. Qc6 {[%clk 0:00:11.7]} 53... Qxg2+
{[%clk 0:00:12.3]} 54. Ke1 {[%clk 0:00:12.5]} 54... Qxf3 {[%clk 0:00:12.6]} 55.
d6 {[%clk 0:00:13.1]} 55... Qe2# {[%clk 0:00:13]} 0-1

[Event "Early-Titled-Tuesday-Blitz-February-20-2024"]
[Site "Chess.com"]
[Date "2024.02.20"]
[Round "2"]
[White "Lion-Al-Messi"]
[Black "hsd2016"]
[Result "0-1"]
[WhiteElo "2540"]
[BlackElo "2341"]
[TimeControl "180+1"]
[EndTime "8:18:24 PST"]
[Termination "hsd2016 won by resignation"]

1. e4 {[%clk 0:03:00.9]} 1... c5 {[%clk 0:02:59.2]} 2. Nf3 {[%clk 0:03:01.4]}
2... g6 {[%clk 0:02:53.6]} 3. d4 {[%clk 0:03:01.2]} 3... cxd4 {[%clk 0:02:54.5]}
4. Qxd4 {[%clk 0:03:01.6]} 4... Nf6 {[%clk 0:02:55]} 5. e5 {[%clk 0:03:01.8]}
5... Nc6 {[%clk 0:02:55.2]} 6. Qa4 {[%clk 0:03:02.4]} 6... Nd5 {[%clk
0:02:54.9]} 7. Qe4 {[%clk 0:03:03]} 7... Nc7 {[%clk 0:02:52.1]} 8. Nc3 {[%clk
0:03:02.9]} 8... Bg7 {[%clk 0:02:52.5]} 9. Bf4 {[%clk 0:03:02.9]} 9... Ne6
{[%clk 0:02:52.5]} 10. Bg3 {[%clk 0:03:00.7]} 10... Qa5 {[%clk 0:02:51.5]} 11.
O-O-O {[%clk 0:02:59.1]} 11... O-O {[%clk 0:02:47.7]} 12. h4 {[%clk 0:02:58.7]}
12... Nc5 {[%clk 0:02:43.7]} 13. Qe3 {[%clk 0:02:54.7]} 13... Na4 {[%clk
0:02:42]} 14. Nxa4 {[%clk 0:02:49.9]} 14... Qxa4 {[%clk 0:02:42.9]} 15. a3
{[%clk 0:02:48.4]} 15... d6 {[%clk 0:02:39]} 16. h5 {[%clk 0:02:46.7]} 16... Bf5
{[%clk 0:02:37.4]} 17. Bd3 {[%clk 0:02:46.4]} 17... Bxd3 {[%clk 0:02:36.1]} 18.
Rxd3 {[%clk 0:02:47.3]} 18... Rac8 {[%clk 0:02:32.7]} 19. hxg6 {[%clk
0:02:44.5]} 19... hxg6 {[%clk 0:02:30.7]} 20. Rh4 {[%clk 0:02:33.8]} 20... Nb4
{[%clk 0:02:23.8]} 21. Rd2 {[%clk 0:01:46.9]} 21... Nxc2 {[%clk 0:01:09.3]} 22.
Qc3 {[%clk 0:01:27.6]} 22... Nb4 {[%clk 0:00:51.7]} 23. axb4 {[%clk 0:01:12.4]}
23... Rxc3+ {[%clk 0:00:48.8]} 24. bxc3 {[%clk 0:01:13.3]} 24... Rc8 {[%clk
0:00:44.4]} 25. Kb2 {[%clk 0:01:11.8]} 25... dxe5 {[%clk 0:00:37.4]} 26. Bxe5
{[%clk 0:01:11]} 26... Qc6 {[%clk 0:00:31.1]} 27. Bxg7 {[%clk 0:01:03.9]} 27...
Kxg7 {[%clk 0:00:32]} 28. Rd3 {[%clk 0:01:00.3]} 28... a5 {[%clk 0:00:28.9]} 29.
Re3 {[%clk 0:00:58.7]} 29... axb4 {[%clk 0:00:27.7]} 30. Rxb4 {[%clk 0:00:59.6]}
30... e6 {[%clk 0:00:25.6]} 31. g3 {[%clk 0:00:59.1]} 31... Ra8 {[%clk
0:00:19.7]} 32. Nd4 {[%clk 0:00:55.5]} 32... Qd5 {[%clk 0:00:19.8]} 33. Rb3
{[%clk 0:00:52.1]} 33... Qg2 {[%clk 0:00:18.9]} 34. Re2 {[%clk 0:00:51.5]} 34...
Qd5 {[%clk 0:00:19.2]} 35. Rd2 {[%clk 0:00:43.5]} 35... Qa5 {[%clk 0:00:19.4]}
36. Kc2 {[%clk 0:00:39.1]} 36... e5 {[%clk 0:00:16.1]} 37. Ne2 {[%clk
0:00:38.7]} 37... Qa2+ {[%clk 0:00:16.2]} 38. Rb2 {[%clk 0:00:39]} 38... Qa4+
{[%clk 0:00:16.5]} 39. Rb3 {[%clk 0:00:39.1]} 39... Rc8 {[%clk 0:00:15.5]} 40.
Nc1 {[%clk 0:00:38.3]} 40... Rc6 {[%clk 0:00:12.5]} 41. Kb2 {[%clk 0:00:32.9]}
41... Ra6 {[%clk 0:00:12.3]} 42. Re2 {[%clk 0:00:27.4]} 42... Qa1+ {[%clk
0:00:11.7]} 43. Kc2 {[%clk 0:00:27.8]} 43... Ra5 {[%clk 0:00:06]} 44. f4 {[%clk
0:00:25.8]} 44... exf4 {[%clk 0:00:06.1]} 45. gxf4 {[%clk 0:00:26.7]} 45... Rc5
{[%clk 0:00:06.2]} 46. Rb2 {[%clk 0:00:22.3]} 46... b5 {[%clk 0:00:06.4]} 47.
Nb3 {[%clk 0:00:19.6]} 47... Qa4 {[%clk 0:00:06.7]} 48. Re3 {[%clk 0:00:07.1]}
48... b4 {[%clk 0:00:06.5]} 49. Rd3 {[%clk 0:00:04.3]} 49... bxc3 {[%clk
0:00:05.8]} 50. Rxc3 {[%clk 0:00:05.2]} 50... Qe4+ {[%clk 0:00:06.2]} 51. Kd2
{[%clk 0:00:05.8]} 51... Qxf4+ {[%clk 0:00:05.8]} 52. Kd3 {[%clk 0:00:05]} 52...
Qf3+ {[%clk 0:00:05.4]} 53. Kd2 {[%clk 0:00:04.8]} 53... Qxc3+ {[%clk
0:00:05.8]} 54. Ke2 {[%clk 0:00:05.2]} 54... Qxb2+ {[%clk 0:00:06.4]} 55. Ke3
{[%clk 0:00:05.2]} 55... Qxb3+ {[%clk 0:00:06.9]} 0-1

[Event "Early-Titled-Tuesday-Blitz-February-20-2024"]
[Site "Chess.com"]
[Date "2024.02.20"]
[Round "2"]
[White "KChor05"]
[Black "Kapitan_Bayan"]
[Result "1-0"]
[WhiteElo "2623"]
[BlackElo "2364"]
[TimeControl "180+1"]
[EndTime "8:18:31 PST"]
[Termination "KChor05 won by resignation"]

1. e4 {[%clk 0:02:59.5]} 1... c5 {[%clk 0:02:59.8]} 2. Nf3 {[%clk 0:02:58.5]}
2... d6 {[%clk 0:02:59.9]} 3. d4 {[%clk 0:02:58.8]} 3... cxd4 {[%clk 0:03:00.4]}
4. Nxd4 {[%clk 0:02:59.7]} 4... Nf6 {[%clk 0:03:00.6]} 5. Nc3 {[%clk 0:03:00]}
5... a6 {[%clk 0:03:01.2]} 6. Be2 {[%clk 0:02:59.9]} 6... e5 {[%clk 0:03:00.5]}
7. Nb3 {[%clk 0:02:59.3]} 7... Be6 {[%clk 0:02:59.9]} 8. Be3 {[%clk 0:02:59.7]}
8... Be7 {[%clk 0:03:00.3]} 9. Nd5 {[%clk 0:02:59.7]} 9... Nxd5 {[%clk
0:02:54.1]} 10. exd5 {[%clk 0:03:00.6]} 10... Bf5 {[%clk 0:02:54.5]} 11. Qd2
{[%clk 0:03:01.1]} 11... O-O {[%clk 0:02:52.4]} 12. Na5 {[%clk 0:02:57.6]} 12...
Qc7 {[%clk 0:02:47.6]} 13. c4 {[%clk 0:02:54.3]} 13... b6 {[%clk 0:02:42.7]} 14.
Nb3 {[%clk 0:02:37.8]} 14... Nd7 {[%clk 0:02:40.9]} 15. O-O {[%clk 0:02:37.7]}
15... Nc5 {[%clk 0:02:35.3]} 16. Nc1 {[%clk 0:02:31.3]} 16... Bf6 {[%clk
0:02:26.3]} 17. b4 {[%clk 0:02:22.4]} 17... Ne4 {[%clk 0:02:23.4]} 18. Qe1
{[%clk 0:02:22.1]} 18... Ng5 {[%clk 0:02:15.4]} 19. Nb3 {[%clk 0:02:13.4]} 19...
h6 {[%clk 0:02:11.3]} 20. Rc1 {[%clk 0:02:11.8]} 20... Qb7 {[%clk 0:02:06.9]}
21. a4 {[%clk 0:02:06.3]} 21... Rac8 {[%clk 0:02:05.2]} 22. a5 {[%clk
0:02:05.7]} 22... b5 {[%clk 0:02:00.2]} 23. Qd2 {[%clk 0:01:31.5]} 23... Ne4
{[%clk 0:01:56.6]} 24. Qe1 {[%clk 0:01:15.8]} 24... Bg5 {[%clk 0:01:38.5]} 25.
cxb5 {[%clk 0:01:09.2]} 25... axb5 {[%clk 0:01:34.4]} 26. Bxg5 {[%clk
0:01:08.7]} 26... hxg5 {[%clk 0:01:29]} 27. f3 {[%clk 0:00:47.4]} 27... Nf6
{[%clk 0:01:22.9]} 28. Qd2 {[%clk 0:00:44.1]} 28... Bg6 {[%clk 0:00:48]} 29.
Rfd1 {[%clk 0:00:35]} 29... Rxc1 {[%clk 0:00:28.2]} 30. Nxc1 {[%clk 0:00:35.9]}
30... Rc8 {[%clk 0:00:25.4]} 31. Bd3 {[%clk 0:00:29.9]} 31... Qxd5 {[%clk
0:00:20.4]} 32. Ne2 {[%clk 0:00:23.8]} 32... Bxd3 {[%clk 0:00:19.8]} 33. Qxd3
{[%clk 0:00:24.7]} 33... Qxd3 {[%clk 0:00:20.1]} 34. Rxd3 {[%clk 0:00:25.6]}
34... d5 {[%clk 0:00:20.5]} 35. Nc3 {[%clk 0:00:25.8]} 35... d4 {[%clk 0:00:20]}
36. Nxb5 {[%clk 0:00:25.8]} 36... Rc1+ {[%clk 0:00:20]} 37. Kf2 {[%clk
0:00:25.3]} 37... g4 {[%clk 0:00:19.7]} 38. a6 {[%clk 0:00:22.9]} 38... Ra1
{[%clk 0:00:17.8]} 39. Ra3 {[%clk 0:00:21.6]} 39... Rb1 {[%clk 0:00:17]} 40. a7
{[%clk 0:00:21.1]} 40... Rb2+ {[%clk 0:00:16.9]} 41. Kg3 {[%clk 0:00:18.5]}
41... Nh5+ {[%clk 0:00:16.3]} 42. Kxg4 {[%clk 0:00:19.1]} 42... Rxg2+ {[%clk
0:00:16.3]} 43. Kf5 {[%clk 0:00:19.2]} 43... g6+ {[%clk 0:00:16]} 44. Kxe5
{[%clk 0:00:19.3]} 44... Rg5+ {[%clk 0:00:16.2]} 45. Kxd4 {[%clk 0:00:17.4]}
45... Rxb5 {[%clk 0:00:16.3]} 46. a8=Q+ {[%clk 0:00:16.9]} 46... Kg7 {[%clk
0:00:16.2]} 47. Qc6 {[%clk 0:00:16.8]} 47... Rf5 {[%clk 0:00:14.9]} 48. b5
{[%clk 0:00:17]} 48... Nf4 {[%clk 0:00:13.8]} 49. b6 {[%clk 0:00:16.2]} 49...
Ne6+ {[%clk 0:00:13.9]} 50. Ke3 {[%clk 0:00:15.5]} 50... Re5+ {[%clk 0:00:13.8]}
51. Kf2 {[%clk 0:00:15.6]} 51... Rf5 {[%clk 0:00:11.7]} 52. b7 {[%clk 0:00:15]}
52... Nd8 {[%clk 0:00:11.7]} 53. Qc3+ {[%clk 0:00:12.9]} 53... Kg8 {[%clk
0:00:11.5]} 54. b8=Q {[%clk 0:00:12.1]} 1-0

[Event "Early-Titled-Tuesday-Blitz-February-20-2024"]
[Site "Chess.com"]
[Date "2024.02.20"]
[Round "2"]
[White "IndianSchoolOfSuffering"]
[Black "tsaruk_maks"]
[Result "1-0"]
[WhiteElo "2415"]
[BlackElo "2734"]
[TimeControl "180+1"]
[EndTime "8:18:32 PST"]
[Termination "IndianSchoolOfSuffering won on time"]

1. e4 {[%clk 0:02:57.2]} 1... e6 {[%clk 0:02:58.6]} 2. d4 {[%clk 0:02:52.4]}
2... d5 {[%clk 0:02:59.5]} 3. Nc3 {[%clk 0:02:51.6]} 3... dxe4 {[%clk
0:02:57.9]} 4. Nxe4 {[%clk 0:02:50.2]} 4... Nd7 {[%clk 0:02:58.4]} 5. Nf3 {[%clk
0:02:49]} 5... Ngf6 {[%clk 0:02:59]} 6. Bd3 {[%clk 0:02:49]} 6... Be7 {[%clk
0:02:58.2]} 7. O-O {[%clk 0:02:48.2]} 7... Nxe4 {[%clk 0:02:57.1]} 8. Bxe4
{[%clk 0:02:47.7]} 8... Nf6 {[%clk 0:02:58]} 9. Bd3 {[%clk 0:02:47.8]} 9... b6
{[%clk 0:02:55.5]} 10. Qe2 {[%clk 0:02:47.5]} 10... Bb7 {[%clk 0:02:55.8]} 11.
Bb5+ {[%clk 0:02:45.5]} 11... c6 {[%clk 0:02:55.2]} 12. Bd3 {[%clk 0:02:42.6]}
12... O-O {[%clk 0:02:55.2]} 13. c3 {[%clk 0:02:41.8]} 13... c5 {[%clk
0:02:55.2]} 14. Bg5 {[%clk 0:02:39.5]} 14... cxd4 {[%clk 0:02:47.4]} 15. Nxd4
{[%clk 0:02:37.2]} 15... Qd5 {[%clk 0:02:36.9]} 16. Nf3 {[%clk 0:02:35.1]} 16...
Rfd8 {[%clk 0:02:17.1]} 17. Rfd1 {[%clk 0:02:32.1]} 17... Qc5 {[%clk 0:02:17.2]}
18. Be3 {[%clk 0:02:25.2]} 18... Qc7 {[%clk 0:02:12.9]} 19. Ba6 {[%clk
0:02:24.4]} 19... Bc6 {[%clk 0:01:59.8]} 20. h3 {[%clk 0:02:22.1]} 20... Nd5
{[%clk 0:01:58.2]} 21. Bd4 {[%clk 0:02:12.1]} 21... Bd6 {[%clk 0:00:36.9]} 22.
Be5 {[%clk 0:01:51.1]} 22... Nf4 {[%clk 0:00:34.1]} 23. Bxf4 {[%clk 0:01:48.3]}
23... Bxf4 {[%clk 0:00:35]} 24. Rxd8+ {[%clk 0:01:46.5]} 24... Rxd8 {[%clk
0:00:34.8]} 25. Rd1 {[%clk 0:01:41.3]} 25... Rxd1+ {[%clk 0:00:34.1]} 26. Qxd1
{[%clk 0:01:40.4]} 26... Qd7 {[%clk 0:00:35]} 27. Qxd7 {[%clk 0:01:36.9]} 27...
Bxd7 {[%clk 0:00:35.9]} 28. g3 {[%clk 0:01:36.4]} 28... Bb8 {[%clk 0:00:34.1]}
29. Bf1 {[%clk 0:01:25.8]} 29... e5 {[%clk 0:00:34]} 30. Nd2 {[%clk 0:01:23.9]}
30... f5 {[%clk 0:00:32]} 31. Bc4+ {[%clk 0:01:21.8]} 31... Kf8 {[%clk
0:00:32.1]} 32. Bd5 {[%clk 0:01:21.4]} 32... Ke7 {[%clk 0:00:32.2]} 33. Kg2
{[%clk 0:01:21.2]} 33... Kd6 {[%clk 0:00:31.2]} 34. Bg8 {[%clk 0:01:16.7]} 34...
h6 {[%clk 0:00:30.8]} 35. h4 {[%clk 0:01:15.1]} 35... b5 {[%clk 0:00:31.1]} 36.
f3 {[%clk 0:01:13]} 36... a5 {[%clk 0:00:30.3]} 37. Kf2 {[%clk 0:01:12.7]} 37...
Ba7+ {[%clk 0:00:30.3]} 38. Ke2 {[%clk 0:01:12.4]} 38... Bg1 {[%clk 0:00:29.3]}
39. b3 {[%clk 0:01:01.8]} 39... a4 {[%clk 0:00:24.8]} 40. bxa4 {[%clk
0:00:55.5]} 40... bxa4 {[%clk 0:00:23.4]} 41. Nc4+ {[%clk 0:00:54.9]} 41... Kc5
{[%clk 0:00:22.2]} 42. Nxe5 {[%clk 0:00:54]} 42... Bb5+ {[%clk 0:00:22.3]} 43.
Nd3+ {[%clk 0:00:50.4]} 43... Kd6 {[%clk 0:00:15.9]} 44. c4 {[%clk 0:00:50.2]}
44... Ba6 {[%clk 0:00:12.6]} 45. Bd5 {[%clk 0:00:47.8]} 45... g5 {[%clk
0:00:11.7]} 46. hxg5 {[%clk 0:00:46.7]} 46... hxg5 {[%clk 0:00:12.6]} 47. g4
{[%clk 0:00:46.6]} 47... f4 {[%clk 0:00:07.1]} 48. Bf7 {[%clk 0:00:45.2]} 48...
Bd4 {[%clk 0:00:07.1]} 49. Bd5 {[%clk 0:00:41.1]} 49... Be3 {[%clk 0:00:07.2]}
50. Kd1 {[%clk 0:00:39.6]} 50... Bc8 {[%clk 0:00:04.5]} 51. Kc2 {[%clk
0:00:37.1]} 51... Bd4 {[%clk 0:00:05.1]} 52. Nc1 {[%clk 0:00:25.7]} 52... Bd7
{[%clk 0:00:04.5]} 53. Kd3 {[%clk 0:00:23.6]} 53... Bb2 {[%clk 0:00:04.4]} 54.
Ne2 {[%clk 0:00:23.1]} 54... Kc5 {[%clk 0:00:05]} 55. Nc3 {[%clk 0:00:22]} 55...
Kb4 {[%clk 0:00:05.5]} 56. Ne4 {[%clk 0:00:21.3]} 56... Ka3 {[%clk 0:00:04.9]}
57. c5 {[%clk 0:00:20.8]} 57... Bb5+ {[%clk 0:00:01.2]} 58. Kd2 {[%clk
0:00:17.7]} 58... Bd4 {[%clk 0:00:01.3]} 59. c6 {[%clk 0:00:16.1]} 1-0